Cogmind - Beta 10.2 @@@ ROGUE MODE // 2021.10.03 @ 11:11:36 Player: Minty Result: Self-destructed Performance ------------- Evolutions (2) 1000 Regions Visited (3) 600 Robots Destroyed (22) 110 Value Destroyed (571) 571 Prototype IDs (1) 20 Alien Tech Used (0) 0 Bonus (0) 0 TOTAL SCORE: 2301 Bonus ------- None Cogmind --------- Core Integrity 483/550 Matter 63/300 Energy 100/100 System Corruption 0% Temperature Cool (0) Movement Core (100) Ox1 Location -8/Materials Parts ------- > --- POWER (1) -------- (None) > --- PROPULSION (2) --- (None) > --- UTILITY (4) ------ Heat Sink Small Storage Unit > --- WEAPON (4) ------- (None) > --- INVENTORY (6) ---- (None) Peak State ------------ > --- POWER ------------ Ion Engine > --- PROPULSION ------- Light Treads Light Treads > --- UTILITY ---------- Heat Sink Heat Sink Small Storage Unit > --- WEAPON ----------- Heavy Assault Rifle Improved Light Cannon Improved Light Cannon Improved Light Cannon > --- INVENTORY -------- (None) [Rating: 14] Favorites ----------- Power Ion Engine Engine Ion Engine Propulsion Aluminum Leg Treads Light Treads Leg Aluminum Leg Utility Small Storage Unit Device Heat Sink Storage Small Storage Unit Weapon Improved Light Cannon Energy Gun Heavy EM Pulse Gun Ballistic Gun Assault Rifle Ballistic Cannon Improved Light Cannon Build | -11 -10 -9 -8 ------- Run | Scr Mat Mat Mat Slots Evolved 4 | . . 2 2 Power . | . . . . Propulsion . | . . . . Utility 2 | . . 1 1 Weapon 2 | . . 1 1 Parts Attached 17 | 1 3 12 1 Power 2 | . 1 1 . Engine 2 | . 1 1 . Core . | . . . . Reactor . | . . . . Propulsion 2 | . . 2 . Treads 2 | . . 2 . Leg . | . . . . Wheel . | . . . . Hover . | . . . . Flight . | . . . . Utility 3 | . . 3 . Device 3 | . . 3 . Storage . | . . . . Processor . | . . . . Hackware . | . . . . Protection . | . . . . Artifact . | . . . . Weapon 10 | 1 2 6 1 Energy Gun 2 | . . 2 . Energy Cannon . | . . . . Ballistic Gun 2 | 1 . 1 . Ballistic Cannon 6 | . 2 3 1 Launcher . | . . . . Special Weapon . | . . . . Impact Weapon . | . . . . Slashing Weapon . | . . . . Piercing Weapon . | . . . . Special Melee Weapon . | . . . . Unidentified Prototypes 1 | . . 1 . Parts Lost 15 | . 1 6 8 Power 3 | . 1 1 1 Propulsion 4 | . . 2 2 Utility 2 | . . 1 1 Weapon 6 | . . 2 4 Highest Loss Streak 8 | . 1 5 8 Average Slot Usage (%) 87 | . 85 91 85 Engine 11 | . 14 9 8 Treads 9 | . . 16 16 Leg 13 | . 28 6 . Device 9 | . . 15 18 Storage 11 | . 14 11 9 Ballistic Gun 12 | . 22 4 9 Ballistic Cannon 17 | . 5 26 24 Naked Turns . | . . . . Heaviest Build 26 | 13 17 23 26 Greatest Support 40 | 20 20 40 40 Greatest Overweight (x) 1 | . . 1 1 Average Overweight (x) . | . . . . Largest Inventory Capacity 6 | 6 6 6 6 Average Capacity 6 | 6 6 6 6 Most Carried 6 | 6 6 5 . Average Carried 3 | 6 5 1 . Final Capacity 6 | 6 6 6 6 Final Carried 6 | 6 6 1 . Class Distribution -------------------- 58% | Gunner 41% | Mutant Dominant Class ---------------- Mutant | -10/Materials Gunner | -9/Materials Gunner | -8/Materials Resources | -11 -10 -9 -8 ----------- Run | Scr Mat Mat Mat Matter Collected 617 | 200 124 258 35 Remotely . | . . . . Salvage Created 491 | . 149 270 72 Parts 37 | . 13 20 4 Haulers Intercepted . | . . . . Recyclers Shooed 1 | . 1 . . Parts Field Recycled . | . . . . Retrieved Matter . | . . . . Parts Self-Destructed . | . . . . Prevented . | . . . . Kills | -11 -10 -9 -8 ------- Run | Scr Mat Mat Mat Combat Hostiles Destroyed 19 | . 7 9 3 Guns 9 | . 7 2 . Cannons 10 | . . 7 3 Classes Destroyed 6 | . 3 2 1 Worker 2 | . 1 1 . Mechanic 1 | . . 1 . Swarmer 8 | . 6 2 . Grunt 7 | . 1 5 1 Duelist 1 | . . . 1 Sentry 3 | . . 2 1 Best Kill Streak 6 | . 4 6 2 Combat Bots Only 4 | . 3 4 2 Max Kills in Single Turn 2 | . 2 1 1 Gunslinging . | . . . . Exploded . | . . . . Melee . | . . . . Uniques/NPCs Destroyed . | . . . . Combat | -11 -10 -9 -8 -------- Run | Scr Mat Mat Mat Damage Taken 1870 | . 324 915 631 Core 261 | . 51 143 67 Absorbed by Shields . | . . . . Core Remaining (%) 81 | 100 79 64 . Volleys Fired 62 | . 24 25 13 Largest 4 | . 2 3 4 Hottest 140 | . 78 123 140 Shots Fired 171 | . 48 75 48 Gun 73 | . 42 18 13 Cannon 98 | . 6 57 35 Launcher . | . . . . Special . | . . . . Kinetic 161 | . 48 65 48 Thermal . | . . . . Explosive . | . . . . Electromagnetic 10 | . . 10 . Robot Hit Streak 9 | . 4 9 6 Robot Miss Streak 5 | . 4 5 3 Penetration Max . | . . . . Secondary Targets 2 | . 2 . . Max Gunslinging Chain 1 | . 1 . . Shots Hit Robots 85 | . 21 35 29 Core Hits 26 | . 9 12 5 Critical Hits 1 | . . 1 . Critical Kills 1 | . . 1 . Critical Parts Destroyed . | . . . . Melee Attacks . | . . . . Impact . | . . . . Slashing . | . . . . Piercing . | . . . . Sneak Attacks . | . . . . Combat Hostiles . | . . . . Follow-up Attacks . | . . . . Damage Inflicted 1499 | . 249 717 533 Guns 529 | . 247 180 102 Cannons 906 | . . 535 371 Explosions 54 | . . . 54 Melee . | . . . . Ramming 10 | . 2 2 6 Kinetic 1366 | . 247 646 473 Thermal 54 | . . . 54 Explosive . | . . . . Electromagnetic 69 | . . 69 . Impact . | . . . . Slashing . | . . . . Piercing . | . . . . Highest Corruption . | . . . . Average Corruption . | . . . . Corruption Purged . | . . . . Overload Shots . | . . . . Overflow Damage 49 | . . 30 19 Projectiles 30 | . . 30 . Explosions 19 | . . . 19 Melee . | . . . . Knockbacks 2 | . . 2 . Impact . | . . . . Kinetic 1 | . . 1 . Secondary 1 | . . 1 . Self-Inflicted Damage . | . . . . Shots . | . . . . Rammed 7 | . . 1 6 Targets Rammed 8 | . 1 1 6 Kicked 1 | . 1 . . Crushed . | . . . . Highest Temperature 241 | . 54 241 27 Average Temperature 54 | . 29 70 11 Received Heat Transfer 480 | . 18 300 162 Siege Activations . | . . . . Robots Corrupted . | . . . . Combat Hostiles . | . . . . Parts Fried 1 | . . 1 . Impact Corruptions . | . . . . Robots Melted . | . . . . Combat Hostiles . | . . . . Parts Melted . | . . . . Heat Transferred 50 | . . . 50 Parts Sabotaged . | . . . . Parts Stolen . | . . . . Parts Stripped . | . . . . Power Chain Reactions . | . . . . Missiles Intercepted . | . . . . Alert | -11 -10 -9 -8 ------- Run | Scr Mat Mat Mat Peak Influence 351 | . 230 351 345 Initial 148 | . . 96 148 Average 184 | . 127 211 250 Maximum Alert Level 1 | . 1 1 1 Low Security (%) 51 | 100 75 33 42 Level 1 48 | . 24 66 57 Level 2 . | . . . . Level 3 . | . . . . Level 4 . | . . . . Level 5 . | . . . . High Security . | . . . . Max Security . | . . . . Squads Dispatched 2 | . 2 . . Investigation 1 | . 1 . . Extermination . | . . . . Reinforcement 1 | . 1 . . Assault . | . . . . Garrison . | . . . . Intercept . | . . . . Construction Impeded . | . . . . Haulers Reinforced . | . . . . Stealth | -11 -10 -9 -8 --------- Run | Scr Mat Mat Mat Distress Signals 1 | . . . 1 Communications Jammed . | . . . . Distress Signals . | . . . . Times Spotted 35 | . 10 13 12 Peak Tracking Total 6 | . 3 5 6 Tactical Retreats 4 | . . 1 3 Traps | -11 -10 -9 -8 ------- Run | Scr Mat Mat Mat Traps Triggered 2 | . 2 . . Indirectly . | . . . . Trap Hack Attempts . | . . . . Triggered . | . . . . Disarmed . | . . . . Reprogrammed . | . . . . Reused . | . . . . Traps Extracted . | . . . . Installed . | . . . . Triggered . | . . . . Machines | -11 -10 -9 -8 ---------- Run | Scr Mat Mat Mat Machines Disabled 3 | . . 1 2 Max in Single Turn 2 | . . 1 2 Machines Sabotaged . | . . . . Garrisons Compromised . | . . . . Overloaded Fab Kills . | . . . . Fab Network Shutdowns . | . . . . Hacking | -11 -10 -9 -8 --------- Run | Scr Mat Mat Mat Machines Accessed 2 | . 1 1 . Terminals 2 | . 1 1 . Fabricators . | . . . . Repair Stations . | . . . . Recycling Units . | . . . . Scanalyzers . | . . . . Garrison Access . | . . . . Total Hacks 9 | . 4 5 . Successful 7 | . 3 4 . Failed 2 | . 1 1 . Catastrophic . | . . . . Database Lockouts . | . . . . Manual 7 | . 2 4 1 Terminals 9 | . 4 5 . Fabricators . | . . . . Repair Stations . | . . . . Recycling Units . | . . . . Scanalyzers . | . . . . Garrison Access . | . . . . Terminal Hacks 5 | . 2 3 . Dispatch Records 1 | . . 1 . Security Status 1 | . 1 . . Transport Status 1 | . . 1 . Recall Investigation 1 | . 1 . . Zone Layout 1 | . . 1 . Fabricator Hacks . | . . . . Repair Station Hacks . | . . . . Recycling Unit Hacks . | . . . . Scanalyzer . | . . . . Garrison Access Hacks . | . . . . Unauthorized Hacks 2 | . 1 1 . Terminals 2 | . 1 1 . Botnet 2 | . 1 1 . Fabricators . | . . . . Repair Stations . | . . . . Recycling Units . | . . . . Scanalyzers . | . . . . Garrison Access . | . . . . Data Cores Recovered . | . . . . Used . | . . . . Hacking Detections 1 | . 1 . . Full Trace Events . | . . . . Feedback Events . | . . . . Feedback Blocked . | . . . . Robot Schematics Acquired . | . . . . Robots Built . | . . . . Matter . | . . . . Time . | . . . . Total Robot Build Rating . | . . . . Part Schematics Acquired . | . . . . Parts Built . | . . . . Matter . | . . . . Time . | . . . . Total Part Build Rating . | . . . . Parts Repaired . | . . . . Time . | . . . . Parts Recycled . | . . . . Recycled Matter . | . . . . Retrieved Matter . | . . . . Retrieved Components . | . . . . Parts Scanalyzed . | . . . . Part Schematics Acquired . | . . . . Parts Damaged . | . . . . Bothacking | -11 -10 -9 -8 ------------ Run | Scr Mat Mat Mat Used RIF Installer . | . . . . Robots Hacked . | . . . . Non-combat . | . . . . Combat . | . . . . Robot Hacks Applied . | . . . . Relay Couplers Released . | . . . . Robots Rewired . | . . . . Allies Hacked . | . . . . Hacks Repelled . | . . . . Allies | -11 -10 -9 -8 -------- Run | Scr Mat Mat Mat Total Allies . | . . . . Largest Group . | . . . . Highest-Rated Group . | . . . . Highest-Rated Ally . | . . . . Total Orders . | . . . . Ally Attacks . | . . . . Total Damage . | . . . . Kills . | . . . . Allies Corrupted . | . . . . Allies Melted . | . . . . Intel | -11 -10 -9 -8 ------- Run | Scr Mat Mat Mat Robot Analysis Total . | . . . . Derelict Logs Recovered . | . . . . Drone Launches . | . . . . Drone Recoveries . | . . . . Exploration | -11 -10 -9 -8 ------------- Run | Scr Mat Mat Mat Turns Passed 794 | 7 309 331 147 Spaces Moved 399 | 5 190 148 56 Core 1 | . . . 1 Treads 166 | . . 111 55 Legs 232 | 5 190 37 . Wheels . | . . . . Hover . | . . . . Flight . | . . . . Fastest Speed 100 | 120 120 120 100 Average Speed 139 | 120 120 156 160 Slowest Speed 180 | 120 120 160 180 Overloaded Moves . | . . . . Propulsion Burnouts . | . . . . Robots Hopped . | . . . . Cave-ins Triggered . | . . . . Exploration Rate (%) 19 | 1 46 19 10 Regions Visited 3 Branch Regions . Pre-discovered Areas . | . . . . Known Exits Taken . | . . . . Unknown Exits Taken 3 | 1 1 1 . Scrap Searched . | . . . . Spaces Dug . | . . . . Terrain Destroyed 52 | . . 2 50 Melee . | . . . . Projectile 3 | . . 2 1 AOE 49 | . . . 49 Terrain Rammed . | . . . . Walls Destroyed . | . . . . Machines Disabled . | . . . . Actions | -11 -10 -9 -8 --------- Run | Scr Mat Mat Mat Total 497 | 5 225 191 76 Wait . | . . . . Move 396 | 4 189 147 56 Hop . | . . . . Pick Up 3 | . 3 . . Fast Attach 9 | . 2 7 . Attach 7 | . 1 5 1 Detach 4 | . 1 3 . Swap 1 | 1 . . . Drop 7 | . 4 3 . Fire 62 | . 24 25 13 Melee . | . . . . Ram 1 | . . . 1 Kick 1 | . 1 . . Crush 6 | . . 1 5 Escape Stasis . | . . . . Rewire . | . . . . Trap . | . . . . Miscellaneous . | . . . . Route ------- -11/Scrapyard -10/Materials (discovered 2 exits: *Mat x2) -9/Materials (discovered 2 exits: *Mat / [*Min]) -8/Materials History --------- Turn | Location | Event 1 | -11/Scrapyard | Discovered new exit (range 2) 8 | -11/Scrapyard | Entered Materials 119 | -10/Materials | Discovered new exit (range 10) 282 | -10/Materials | Discovered new exit (range 15) 306 | -10/Materials | Build established: Mutant 317 | -10/Materials | Entered another Materials area 317 | -9/Materials | Evolved 2 slots: Utility x1, Weapon x1 456 | -9/Materials | Lost 5 parts (1p2n2w) 463 | -9/Materials | Discovered new exit (range 15) 534 | -9/Materials | Discovered new exit (range 15) 623 | -9/Materials | Build established: Gunner 648 | -9/Materials | Entered another Materials area 648 | -8/Materials | Evolved 2 slots: Utility x1, Weapon x1 795 | -8/Materials | Self-destructed Last Messages --------------- 00757_ U-05 Engineer lays Concrete. 00760_ U-05 Engineer builds a Wall. 00768_ Imp. Light Cannon destroyed. 00769_ Lgt. Treads destroyed. 00778_ Slammed into S-10 Pest. 00782_ S-10 Pest destroyed. 00783_ Acquired 12 matter. 00785_ Slammed into S-10 Pest. 00785_ Ion Engine destroyed. 00786_ Imp. Light Cannon destroyed. 00787_ G-47 Trooper destroyed. 00790_ Slammed into S-10 Pest. 00791_ Heat Sink destroyed. 00791_ Lgt. Treads destroyed. 00792_ K-01 Serf collects debris. 00792_ Slammed into S-10 Pest. 00793_ Acquired 5 matter. 00793_ Hvy. Assault Rifle destroyed. 00793_ Imp. Light Cannon destroyed. 00794_ K-01 Serf collects debris. Map ----- +----------------------------------------------------+ | | | | | | | | | | | | | | | | | | | | | | | | | ?????????????????????????????????????????????????? | | ?????????????????????????????????????????????????? | | ?????????????????#?????#####?????????????????????? | | ?????????????????# ?? #?????????????????????? | | ?????????????????# """ ##????????????????????? | | ##???????????????# """"" +?????????????????????? | | #???????????????# """"" #?????????????????????? | | ###########?????# """"" #?????????????????????? | | # = #?????# """ #?????????????????????? | | #"S #?????# #?????????????????????? | | #""" """ #?????# ! #??????????#??????????? | | # "" """ #???#######s########## #??????????? | | + """ #???# * #??????????? | | # #???# @Y ????????? | | # #???# s s #??????????? | | # #???# #######;;;;### #??????????? | | #####+#####???# #??????;;;; #?????##??????????? | | #???# #???????# #?????? ; #????????????????? | | #???# #??????## ##????? #????????????????? | | ##### ######## #?? #????????????????? | | # # #????????????????? | | + u k#????????????????? | | % # k ????????????????? | | ###"########## # k ???????????????? | | ?????????????#######? ? ??????????????? | | ?????????????????????? #? ??????????????? | | ??????????????????????""""";;;#?????????????????? | | ???????????????????????"#""# ???????????????????? | | ????????????????????????? ? ?????????????????????? | | ??????????????????????????#??????????????????????? | | ?????????????????????????????????????????????????? | | ?????????????????????????????????????????????????? | | ?????????????????????????????????????????????????? | | ?????????????????????????????????????????????????? | | ?????????????????????????????????????????????????? | | ?????????????????????????????????????????????????? | | ?????????????????????????????????????????????????? | | ?????????????????????????????????????????????????? | +----------------------------------------------------+ Best States ------------- Heat Dissipation 51 Energy Generation 10 Energy Capacity 250 Matter Stores 300 Matter Capacity 300 Sight Range 16 Terrain Scan Density 10 Evasion (%) 40 Recoil Reduction 2 Item Schematics ----------------- None Robot Schematics ------------------ None Fabricated ------------ Nothing Alien Tech Used ----------------- None Achievements -------------- None Challenges ------------ None Game ------ Seed ChainSupercompositeScanner Manual? 0 Play Time 00:07:06 Cumulative 340.2 hours Start 2021.10.03 @ 11:00:26 End 2021.10.03 @ 11:11:36 Sessions 1 Manual Loads 0 Difficulty Rogue Special Mode None Game No. 228 Rogue 57 Adventurer 61 Explorer 110 Win Type - Total 19 Types 17/0/1/0/0/0/0/1/0 Lore% 63 Gallery% 86 Achievement% 65 Wizard Run 0 Options --------- ASCII 0 Keyboard 1 Movement Numpad Keybinds 0 Fullscreen 2 Font 18/X11 Map View 76x50 Tactical HUD 1 Map Filters NONE Filters NONE Steam 1 RUN: a47b55ec-0c07-4cd3-b6ef-b9b03fa74ec5